fUST/lending_fUST_20260417
["ID","MTS","AMOUNT","RATE_DAILY","PERIOD"]
[420634077,1776384643444,-541.65,7.919e-05,2]
[420634078,1776384643461,-585.97660249,7.919e-05,2]
[420634079,1776384643472,-7374.82932665,7.919e-05,2]
[420634084,1776384646320,-637.00774766,7.919e-05,2]
[420634085,1776384646377,-47242.88710307,7.919e-05,2]
[420634086,1776384646387,-160.0,8.086e-05,2]
[420634087,1776384646396,-500.0,8.119e-05,2]
[420634088,1776384646405,-155.0,8.218e-05,2]
[420634089,1776384646415,-1438.7233,8.219e-05,2]
[420634090,1776384646424,-502.518538,8.219e-05,2]
[420634091,1776384646433,-1005.037076,8.219e-05,2]
[420634092,1776384646442,-422.90288201,8.219e-05,2]
[420634093,1776384646452,-746.22,8.219e-05,2]
[420634094,1776384646461,-500.0,8.219e-05,2]
[420634095,1776384646470,-715.54,8.219e-05,2]
[420634096,1776384646479,-500.0,8.219e-05,2]
[420634097,1776384646489,-424.02589966,8.219e-05,2]
[420634098,1776384646511,-800.66410034,8.219e-05,2]
[420634099,1776384646521,-500.0,8.219e-05,2]
[420634100,1776384646531,-840.12,8.219e-05,2]
[420634101,1776384646540,-500.0,8.219e-05,2]
[420634102,1776384646549,-500.0,8.219e-05,2]
[420634103,1776384646558,-500.0,8.219e-05,2]
[420634104,1776384646567,-500.0,8.219e-05,2]
[420634105,1776384646576,-500.0,8.219e-05,2]
[420634106,1776384646585,-500.0,8.219e-05,2]
[420634107,1776384646594,-500.87,8.219e-05,2]
[420634108,1776384646603,-500.0,8.219e-05,2]
[420634109,1776384646612,-500.0,8.219e-05,2]
[420634110,1776384646622,-500.0,8.219e-05,2]
[420634111,1776384646631,-292.92,8.219e-05,2]
[420634112,1776384646640,-500.0,8.219e-05,2]
[420634113,1776384646650,-500.0,8.219e-05,2]
[420634114,1776384646660,-500.0,8.219e-05,2]
[420634115,1776384646670,-558.29,8.219e-05,2]
[420634116,1776384646679,-500.0,8.219e-05,2]
[420634117,1776384646688,-1337.37,8.219e-05,2]
[420634118,1776384646697,-500.0,8.219e-05,2]
[420634119,1776384646707,-653.64,8.219e-05,2]
[420634120,1776384646716,-151.0,8.219e-05,2]
[420634121,1776384646726,-1942.71,8.219e-05,2]
[420634122,1776384646735,-1462.39,8.219e-05,2]
[420634123,1776384646744,-500.0,8.219e-05,2]
[420634124,1776384646754,-500.0,8.219e-05,2]
[420634125,1776384646763,-500.0,8.219e-05,2]
[420634126,1776384646772,-500.0,8.219e-05,2]
[420634127,1776384646781,-501.12,8.219e-05,2]
[420634128,1776384646790,-1302.45,8.219e-05,2]
[420634129,1776384646799,-1164.93,8.219e-05,2]
[420634130,1776384646809,-519.0,8.219e-05,2]
[420634131,1776384646818,-500.0,8.219e-05,2]
[420634132,1776384646827,-1481.28,8.219e-05,2]
[420634133,1776384646836,-974.0,8.219e-05,2]
[420634134,1776384646845,-974.0,8.219e-05,2]
[420634135,1776384646855,-974.0,8.219e-05,2]
[420634136,1776384646864,-974.0,8.219e-05,2]
[420634137,1776384646873,-974.0,8.219e-05,2]
[420634138,1776384646883,-974.0,8.219e-05,2]
[420634139,1776384646892,-974.0,8.219e-05,2]
[420634140,1776384646901,-974.0,8.219e-05,2]
[420634141,1776384646911,-974.0,8.219e-05,2]
[420634142,1776384646921,-974.0,8.219e-05,2]
[420634143,1776384646930,-974.0,8.219e-05,2]
[420634144,1776384646940,-974.0,8.219e-05,2]
[420634145,1776384646949,-974.0,8.219e-05,2]
[420634146,1776384646959,-974.0,8.219e-05,2]
[420634147,1776384646969,-974.0,8.219e-05,2]
[420634148,1776384646978,-5307.71,8.219e-05,2]
[420634149,1776384646988,-974.0,8.219e-05,2]
[420634150,1776384646997,-974.0,8.219e-05,2]
[420634151,1776384647007,-500.0,8.219e-05,2]
[420634152,1776384647018,-500.0,8.219e-05,2]
[420634153,1776384647028,-974.0,8.219e-05,2]
[420634154,1776384647038,-500.0,8.219e-05,2]
[420634155,1776384647048,-500.0,8.219e-05,2]
[420634156,1776384647058,-500.0,8.219e-05,2]
[420634157,1776384647068,-500.0,8.219e-05,2]
[420634158,1776384647079,-500.0,8.219e-05,2]
[420634159,1776384647090,-974.0,8.219e-05,2]
[420634160,1776384647101,-500.0,8.219e-05,2]
[420634161,1776384647111,-500.0,8.219e-05,2]
[420634162,1776384647121,-500.0,8.219e-05,2]
[420634163,1776384647130,-500.0,8.219e-05,2]
[420634164,1776384647141,-500.0,8.219e-05,2]
[420634165,1776384647150,-500.0,8.219e-05,2]
[420634166,1776384647160,-500.0,8.219e-05,2]
[420634167,1776384647169,-500.0,8.219e-05,2]
[420634168,1776384647178,-177.55466905,8.219e-05,2]
[420634169,1776384647202,-322.44533095,8.219e-05,2]
[420634170,1776384647212,-974.0,8.219e-05,2]
[420634171,1776384647417,-500.0,8.219e-05,2]
[420634172,1776384647427,-210.0,8.219e-05,2]
[420634173,1776384647436,-974.0,8.219e-05,2]
[420634174,1776384647445,-974.0,8.219e-05,2]
[420634175,1776384647454,-974.0,8.219e-05,2]
[420634176,1776384647463,-992.0,8.219e-05,2]
[420634177,1776384647472,-235.13549561,8.219e-05,2]
[420634178,1776384647481,-3603.00048257,8.219e-05,2]
[420634179,1776384647494,-146.26951743,8.219e-05,2]
[420634180,1776384647503,-501.65656001,8.219e-05,2]
[420634181,1776384647513,-500.0,8.219e-05,2]
[420634182,1776384647523,-719.67,8.219e-05,2]
[420634183,1776384647533,-500.0,8.219e-05,2]
[420634184,1776384647543,-500.0,8.219e-05,2]
[420634185,1776384647552,-1832.38,8.219e-05,2]
[420634186,1776384647561,-500.0,8.219e-05,2]
[420634187,1776384647570,-554.42,8.219e-05,2]
[420634188,1776384647579,-500.0,8.219e-05,2]
[420634189,1776384647588,-5071.60271666,8.219e-05,2]
[420634190,1776384647599,-662.28728334,8.219e-05,2]
[420634191,1776384647609,-178.52266103,8.219e-05,2]
[420634196,1776384691030,200.0,0.00021875,120]
[420634197,1776384751154,200.0,0.00023332,120]
[420634198,1776384753981,1663.77,0.00024,120]
[420634199,1776384810723,200.0,0.00024247,120]
[420634200,1776384870746,200.0,0.0002413,120]
[420634201,1776384931419,200.0,0.00024312,120]
[420634202,1776384991241,200.0,0.00023535,120]
[420634203,1776385051387,200.0,0.0002447,120]
[420634204,1776385171074,200.0,0.00024198,120]
[420634205,1776385231188,200.0,0.00023113,120]
[420634206,1776385351301,200.0,0.00023905,120]
[420634207,1776385362146,779.12172262,0.00024657,120]
[420634226,1776385710745,200.0,0.00024519,120]
[420634227,1776385720124,578.23594313,0.00024657,120]
[420634230,1776385832475,-185.17876,7.222e-05,2]
[420634231,1776385832485,-299.24164882,7.222e-05,2]
[420634232,1776385832494,-522.0,7.222e-05,2]
[420634233,1776385832504,-178.114614,7.241e-05,2]
[420634234,1776385832513,-2356.75184426,7.299e-05,2]
[420634235,1776385832525,-39.25709016,7.299e-05,2]
[420634236,1776385832534,-6548.18478827,7.499e-05,2]
[420634237,1776385832557,-677.26267608,7.499e-05,2]
[420634238,1776385832586,-50.77841399,7.499e-05,2]
[420634239,1776385832595,-254.88983401,7.5e-05,2]
[420634240,1776385832607,-61.5830762,7.5e-05,2]
[420634241,1776385832617,-301.90681227,7.5e-05,2]
[420634242,1776385832627,-185.17876,7.526e-05,2]
[420634243,1776385832636,-116.38296001,7.539e-05,2]
[420634244,1776385832647,-80.04001429,7.539e-05,2]
[420634245,1776385832658,-317.87516142,7.593e-05,2]
[420634247,1776385832669,-182.12483858,7.593e-05,2]
[420634249,1776385832678,-391.59550709,7.593e-05,2]
[420634251,1776385832689,-3204.84552603,7.593e-05,2]
[420634388,1776385838800,-322.65030477,7.593e-05,2]
[420634389,1776385838964,-3900.88288936,7.593e-05,2]
[420634390,1776385838973,-502.90691355,7.593e-05,2]
[420634391,1776385838983,-525.12411808,7.593e-05,2]
[420634392,1776385838992,-500.0,7.593e-05,2]
[420634393,1776385839001,-506.66068339,7.593e-05,2]
[420634394,1776385839010,-500.0,7.593e-05,2]
[420634395,1776385839020,-500.0,7.593e-05,2]
[420634396,1776385839029,-500.0,7.593e-05,2]
[420634397,1776385839039,-500.0,7.618e-05,2]
[420634398,1776385839048,-500.0,7.618e-05,2]
[420634399,1776385839057,-500.0,7.618e-05,2]
[420634400,1776385839066,-500.0,7.618e-05,2]
[420634401,1776385839076,-500.0,7.618e-05,2]
[420634402,1776385839085,-154.49847505,7.618e-05,2]
[420634403,1776385839095,-500.0,7.618e-05,2]
[420634404,1776385839104,-500.0,7.618e-05,2]
[420634405,1776385839114,-450.0,7.618e-05,2]
[420634406,1776385839123,-17459.86966025,7.619e-05,2]
[420634407,1776385839134,-3191.72976468,7.619e-05,2]
[420634408,1776385839145,-3746.24925059,7.619e-05,2]
[420634409,1776385839156,-95177.95325563,7.619e-05,2]
[420634410,1776385839166,-294394.16436208,7.619e-05,2]
[420634411,1776385839177,-1070159.47414313,7.619e-05,2]
[420634504,1776385846751,-5173.0,7.619e-05,2]
[420634509,1776385861733,-1316.6371552,7.619e-05,2]
[420634510,1776385865381,2270.0,0.00024658,120]
[420634511,1776385890816,200.0,0.00016517,120]
[420634512,1776386131441,200.0,0.00020726,120]
[420634513,1776386161389,2023.82606098,0.00024658,120]
[420634514,1776386184714,108.2065816,2e-05,2]
[420634515,1776386184741,500.0,2e-05,2]
[420634516,1776386184767,500.0,2e-05,2]
[420634517,1776386184794,1891.7934184,2e-05,2]
[420634518,1776386217195,1397.29,0.00024658,120]
[420634519,1776386256725,5000.0,0.00024658,120]
[420634523,1776386550808,200.0,0.00024657,120]
[420634525,1776386670869,200.0,0.00023452,120]
[420634527,1776386862375,200.0,0.00023856,120]
[420634529,1776386926049,153.64894742,0.00016801,120]
[420634530,1776386970750,200.0,0.00019562,120]
[420634531,1776387030982,200.0,0.00024601,120]
[420634596,1776387038316,-511.0,6.342e-05,2]
[420634598,1776387038325,-868.25546468,6.342e-05,2]
[420634601,1776387038336,-673.64896502,6.342e-05,2]
[420634603,1776387038347,-3102.0,7e-05,5]
[420634605,1776387038357,-300.47964099,7.104e-05,2]
[420634607,1776387038366,-500.0,7.216e-05,2]
[420634609,1776387038376,-300.0,7.216e-05,2]
[420634611,1776387038386,-1017.0,7.216e-05,2]
[420634612,1776387038395,-22355.95362922,7.217e-05,2]
[420634615,1776387038407,-27644.04637078,7.217e-05,2]
[420634617,1776387038416,-500.0,7.217e-05,2]
[420634619,1776387038425,-500.0,7.217e-05,2]
[420634621,1776387038435,-500.0,7.217e-05,2]
[420634623,1776387038444,-500.0,7.217e-05,2]
[420634624,1776387038453,-500.0,7.217e-05,2]
[420634626,1776387038462,-214.08917419,7.217e-05,2]
[420634628,1776387038471,-500.0,7.217e-05,2]
[420634630,1776387038481,-500.0,7.217e-05,2]
[420634632,1776387038490,-500.0,7.217e-05,2]
[420634634,1776387038499,-290696.6898917,7.218e-05,2]
[420634637,1776387038510,-403533.42309592,7.318e-05,2]
[420634638,1776387038519,-151.0,7.544e-05,2]
[420634641,1776387038529,-173.874264,7.548e-05,2]
[420634643,1776387038539,-455.457139,7.548e-05,2]
[420634645,1776387038548,-1085.73733,7.62e-05,2]
[420634647,1776387038557,-2543.0991022,7.62e-05,2]
[420634649,1776387038567,-600.0,7.668e-05,2]
[420634651,1776387038576,-185.17876,7.83e-05,2]
[420634653,1776387038585,-152.0,7.862e-05,7]
[420634655,1776387038594,-267.61273966,8.033e-05,2]
[420634657,1776387038603,-2150.738,8.033e-05,2]
[420634659,1776387038612,-160.0,8.048e-05,2]
[420634661,1776387038622,-736.0,8.1e-05,2]
[420634663,1776387038631,-185.17876,8.134e-05,2]
[420634665,1776387038641,-155.0,8.218e-05,2]
[420634667,1776387038651,-1184.2624,8.219e-05,2]
[420634669,1776387038660,-500.0,8.219e-05,2]
[420634671,1776387038669,-500.0,8.219e-05,2]
[420634673,1776387038678,-500.0,8.219e-05,2]
[420634675,1776387038687,-500.0,8.219e-05,2]
[420634677,1776387038696,-500.0,8.219e-05,2]
[420634679,1776387038705,-500.0,8.219e-05,2]
[420634680,1776387038716,-500.0,8.219e-05,2]
[420634683,1776387038725,-500.0,8.219e-05,2]
[420634684,1776387038735,-500.0,8.219e-05,2]
[420634686,1776387038744,-500.0,8.219e-05,2]
[420634689,1776387038754,-500.0,8.219e-05,2]
[420634690,1776387038763,-500.0,8.219e-05,2]
[420634693,1776387038774,-500.0,8.219e-05,2]
[420634695,1776387038783,-500.23937945,8.219e-05,2]
[420634697,1776387038793,-500.0,8.219e-05,2]
[420634699,1776387038802,-501.00806524,8.219e-05,2]
[420634701,1776387038813,-500.31222103,8.219e-05,2]
[420634703,1776387038822,-501.68215269,8.219e-05,2]
[420634704,1776387038832,-500.0,8.219e-05,2]
[420634706,1776387038841,-500.0,8.219e-05,2]
[420634708,1776387038850,-518.59,8.219e-05,2]
[420634710,1776387038859,-500.0,8.219e-05,2]
[420634712,1776387038869,-500.0,8.219e-05,2]
[420634714,1776387038877,-500.0,8.219e-05,2]
[420634716,1776387038887,-500.0,8.219e-05,2]
[420634718,1776387038896,-592.27,8.219e-05,2]
[420634720,1776387038906,-500.0,8.219e-05,2]
[420634722,1776387038915,-500.0,8.219e-05,2]
[420634724,1776387038924,-500.0,8.219e-05,2]
[420634726,1776387038933,-500.0,8.219e-05,2]
[420634728,1776387038943,-500.0,8.219e-05,2]
[420634730,1776387038952,-500.0,8.219e-05,2]
[420634732,1776387038961,-500.0,8.219e-05,2]
[420634734,1776387038970,-621.28,8.219e-05,2]
[420634736,1776387038979,-500.0,8.219e-05,2]
[420634738,1776387038988,-500.0,8.219e-05,2]
[420634740,1776387038997,-394.22507022,8.219e-05,2]
[420634742,1776387039007,-781.0,8.219e-05,2]
[420634744,1776387039017,-500.0,8.219e-05,2]
[420634746,1776387039026,-500.0,8.219e-05,2]
[420634748,1776387039035,-500.0,8.219e-05,2]
[420634750,1776387039044,-500.0,8.219e-05,2]
[420634752,1776387039053,-1176.84,8.219e-05,2]
[420634754,1776387039063,-500.0,8.219e-05,2]
[420634756,1776387039072,-606.05,8.219e-05,2]
[420634758,1776387039080,-848.54,8.219e-05,2]
[420634760,1776387039090,-1345.07,8.219e-05,2]
[420634762,1776387039098,-500.0,8.219e-05,2]
[420634763,1776387039108,-471.70484085,8.219e-05,2]
[420634765,1776387039118,-500.0,8.219e-05,2]
[420634768,1776387039128,-661.78,8.219e-05,2]
[420634769,1776387039137,-500.0,8.219e-05,2]
[420634771,1776387039146,-685.72,8.219e-05,2]
[420634773,1776387039156,-500.0,8.219e-05,2]
[420634775,1776387039165,-500.0,8.219e-05,2]
[420634777,1776387039176,-500.0,8.219e-05,2]
[420634779,1776387039185,-1173.66,8.219e-05,2]
[420634781,1776387039194,-535.03,8.219e-05,2]
[420634783,1776387039203,-500.0,8.219e-05,2]
[420634785,1776387039212,-151.5,8.219e-05,2]
[420634787,1776387039221,-500.0,8.219e-05,2]
[420634789,1776387039231,-151.5,8.219e-05,2]
[420634791,1776387039241,-155.30680514,8.219e-05,2]
[420634793,1776387039250,-500.0,8.219e-05,2]
[420634795,1776387039259,-500.0,8.219e-05,2]
[420634797,1776387039269,-500.0,8.219e-05,2]
[420634799,1776387039279,-930.12,8.219e-05,2]
[420634801,1776387039288,-2369.81,8.219e-05,2]
[420634803,1776387039297,-500.0,8.219e-05,2]
[420634805,1776387039307,-500.0,8.219e-05,2]
[420634807,1776387039316,-530.36,8.219e-05,2]
[420634809,1776387039325,-502.45057877,8.219e-05,2]
[420634811,1776387039334,-500.0,8.219e-05,2]
[420634813,1776387039344,-500.0,8.219e-05,2]
[420634815,1776387039353,-886.48,8.219e-05,2]
[420634817,1776387039363,-500.0,8.219e-05,2]
[420634819,1776387039372,-500.0,8.219e-05,2]
[420634821,1776387039382,-930.88,8.219e-05,2]
[420634823,1776387039391,-500.0,8.219e-05,2]
[420634825,1776387039400,-2010.89,8.219e-05,2]
[420634827,1776387039409,-500.0,8.219e-05,2]
[420634829,1776387039418,-500.0,8.219e-05,2]
[420634831,1776387039428,-500.0,8.219e-05,2]
[420634833,1776387039437,-500.0,8.219e-05,2]
[420634835,1776387039446,-500.0,8.219e-05,2]
[420634837,1776387039455,-500.0,8.219e-05,2]
[420634839,1776387039467,-1869.5,8.219e-05,2]
[420634841,1776387039476,-500.0,8.219e-05,2]
[420634843,1776387039486,-500.0,8.219e-05,2]
[420634845,1776387039495,-1292.93,8.219e-05,2]
[420634847,1776387039504,-500.0,8.219e-05,2]
[420634849,1776387039514,-267.39883343,8.219e-05,2]
[420634851,1776387039524,-500.0,8.219e-05,2]
[420634853,1776387039534,-2722.35,8.219e-05,2]
[420634855,1776387039543,-500.0,8.219e-05,2]
[420634857,1776387039553,-500.0,8.219e-05,2]
[420634859,1776387039562,-500.0,8.219e-05,2]
[420634861,1776387039572,-500.0,8.219e-05,2]
[420634863,1776387039581,-500.0,8.219e-05,2]
[420634865,1776387039590,-1225.85,8.219e-05,2]
[420634867,1776387039599,-500.0,8.219e-05,2]
[420634869,1776387039609,-2215.35,8.219e-05,2]
[420634871,1776387039618,-500.0,8.219e-05,2]
[420634873,1776387039627,-685.69,8.219e-05,2]
[420634875,1776387039636,-500.0,8.219e-05,2]
[420634877,1776387039646,-500.0,8.219e-05,2]
[420634879,1776387039655,-500.0,8.219e-05,2]
[420634881,1776387039664,-500.0,8.219e-05,2]
[420634882,1776387039674,-500.0,8.219e-05,2]
[420634883,1776387039683,-500.0,8.219e-05,2]
[420634885,1776387039692,-2114.12,8.219e-05,2]
[420634886,1776387039701,-500.0,8.219e-05,2]
[420634888,1776387039710,-1537.42,8.219e-05,2]
[420634889,1776387039720,-2311.04,8.219e-05,2]
[420634890,1776387039729,-162.156851,8.219e-05,2]
[420634892,1776387039738,-1852.31,8.219e-05,2]
[420634894,1776387039747,-500.0,8.219e-05,2]
[420634896,1776387039757,-4960.81,8.219e-05,2]
[420634898,1776387039766,-2704.7,8.219e-05,2]
[420634899,1776387039775,-500.0,8.219e-05,2]
[420634901,1776387039784,-2399.18,8.219e-05,2]
[420634902,1776387039794,-500.0,8.219e-05,2]
[420634903,1776387039803,-500.0,8.219e-05,2]
[420634904,1776387039813,-5457.94,8.219e-05,2]
[420634905,1776387039822,-1318.97,8.219e-05,2]
[420634906,1776387039831,-656.29,8.219e-05,2]
[420634907,1776387039840,-500.0,8.219e-05,2]
[420634908,1776387039850,-5372.98,8.219e-05,2]
[420634909,1776387039859,-3709.08,8.219e-05,2]
[420634910,1776387039869,-402.19424952,8.219e-05,2]
[420634911,1776387039878,-2023.17,8.219e-05,2]
[420634912,1776387039887,-500.0,8.219e-05,2]
[420634913,1776387039896,-944.92,8.219e-05,2]
[420634914,1776387039905,-500.0,8.219e-05,2]
[420634915,1776387039914,-500.0,8.219e-05,2]
[420634916,1776387039923,-500.0,8.219e-05,2]
[420634917,1776387039933,-500.0,8.219e-05,2]
[420634918,1776387039942,-565.64673911,8.219e-05,2]
[420634919,1776387039951,-566.29,8.219e-05,2]
[420634920,1776387039960,-2280.4,8.219e-05,2]
[420634921,1776387039970,-500.0,8.219e-05,2]
[420634922,1776387039979,-1206.044491,8.219e-05,2]
[420634923,1776387039989,-640.56,8.219e-05,2]
[420634924,1776387039997,-4674.04,8.219e-05,2]
[420634925,1776387040007,-500.0,8.219e-05,2]
[420634926,1776387040016,-500.0,8.219e-05,2]
[420634927,1776387040025,-2994.88,8.219e-05,2]
[420634928,1776387040034,-500.0,8.219e-05,2]
[420634929,1776387040043,-500.0,8.219e-05,2]
[420634930,1776387040052,-511.68701496,8.219e-05,2]
[420634931,1776387040061,-899.34,8.219e-05,2]
[420634932,1776387040070,-587.68,8.219e-05,2]
[420634933,1776387040079,-5453.75,8.219e-05,2]
[420634934,1776387040088,-1955.11,8.219e-05,2]
[420634935,1776387040098,-500.0,8.219e-05,2]
[420634936,1776387040107,-3111.31,8.219e-05,2]
[420634937,1776387040116,-1431.79,8.219e-05,2]
[420634938,1776387040125,-500.0,8.219e-05,2]
[420634939,1776387040134,-22803.41,8.219e-05,2]
[420634940,1776387040143,-166.79,8.219e-05,2]
[420634941,1776387040152,-613.98,8.219e-05,2]
[420634942,1776387040161,-2348.89,8.219e-05,2]
[420634943,1776387040170,-4478.11,8.219e-05,2]
[420634944,1776387040179,-676.97,8.219e-05,2]
[420634945,1776387040189,-500.82056099,8.219e-05,2]
[420634946,1776387040198,-500.0,8.219e-05,2]
[420634947,1776387040207,-2538.81,8.219e-05,2]
[420634948,1776387040216,-1755.24,8.219e-05,2]
[420634949,1776387040226,-559.02270499,8.219e-05,2]
[420634950,1776387040235,-3860.62,8.219e-05,2]
[420634951,1776387040245,-500.0,8.219e-05,2]
[420634952,1776387040254,-500.0,8.219e-05,2]
[420634953,1776387040263,-6383.9,8.219e-05,2]
[420634954,1776387040272,-500.0,8.219e-05,2]
[420634955,1776387040281,-1049.52,8.219e-05,2]
[420634956,1776387040290,-13023.47,8.219e-05,2]
[420634957,1776387040299,-1666.5,8.219e-05,2]
[420634958,1776387040308,-2590.59,8.219e-05,2]
[420634959,1776387040318,-500.81989108,8.219e-05,2]
[420634960,1776387040327,-500.0,8.219e-05,2]
[420634961,1776387040336,-684.32,8.219e-05,2]
[420634962,1776387040346,-6038.21,8.219e-05,2]
[420634963,1776387040355,-500.0,8.219e-05,2]
[420634964,1776387040364,-663.91,8.219e-05,2]
[420634965,1776387040373,-635.84,8.219e-05,2]
[420634966,1776387040383,-1187.6,8.219e-05,2]
[420634967,1776387040392,-500.0,8.219e-05,2]
[420634968,1776387040401,-500.0,8.219e-05,2]
[420634969,1776387040410,-500.0,8.219e-05,2]
[420634970,1776387040419,-500.0,8.219e-05,2]
[420634971,1776387040429,-531.32,8.219e-05,2]
[420634972,1776387040438,-500.0,8.219e-05,2]
[420634973,1776387040447,-1202.77,8.219e-05,2]
[420634974,1776387040456,-500.0,8.219e-05,2]
[420634975,1776387040465,-524.49,8.219e-05,2]
[420634976,1776387040474,-500.0,8.219e-05,2]
[420634977,1776387040483,-500.0,8.219e-05,2]
[420634978,1776387040492,-5000.0,8.219e-05,2]
[420634979,1776387040501,-3953.093739,8.219e-05,2]
[420634980,1776387040510,-2208.0,8.244e-05,2]
[420634981,1776387040519,-1408.0,8.244e-05,2]
[420634982,1776387040528,-645.0,8.244e-05,2]
[420634983,1776387040538,-8968.44156501,8.272e-05,2]
[420634984,1776387040547,-500.0,8.309e-05,2]
[420634985,1776387040556,-500.0,8.309e-05,2]
[420634986,1776387040566,-500.0,8.309e-05,2]
[420634987,1776387040575,-500.0,8.309e-05,2]
[420634988,1776387040584,-150.388,8.339e-05,2]
[420634989,1776387040593,-150.362,8.339e-05,2]
[420634990,1776387040602,-455.6765822,8.37e-05,2]
[420634991,1776387040611,-1108.079537,8.39e-05,2]
[420634992,1776387040622,-720.0,8.435e-05,2]
[420634993,1776387040631,-185.17876,8.438e-05,2]
[420634994,1776387040641,-809.1296,8.493e-05,2]
[420634995,1776387040650,-588.7149,8.493e-05,2]
[420634996,1776387040660,-500.0,8.493e-05,2]
[420634997,1776387040669,-500.0,8.493e-05,2]
[420634998,1776387040678,-500.32638506,8.493e-05,2]
[420634999,1776387040687,-500.0,8.493e-05,2]
[420635000,1776387040696,-500.0,8.493e-05,2]
[420635001,1776387040706,-500.0,8.493e-05,2]
[420635002,1776387040715,-592.27,8.493e-05,2]
[420635003,1776387040724,-406.46648268,8.493e-05,2]
[420635004,1776387040733,-568.25028967,8.493e-05,2]
[420635005,1776387040742,-500.0,8.493e-05,2]
[420635006,1776387040751,-500.0,8.493e-05,2]
[420635007,1776387040760,-621.28,8.493e-05,2]
[420635008,1776387040770,-500.0,8.493e-05,2]
[420635009,1776387040779,-781.0,8.493e-05,2]
[420635010,1776387040788,-529.59121629,8.493e-05,2]
[420635011,1776387040798,-500.0,8.493e-05,2]
[420635012,1776387040808,-500.0,8.493e-05,2]
[420635013,1776387040818,-500.0,8.493e-05,2]
[420635014,1776387040828,-1176.84,8.493e-05,2]
[420635015,1776387040837,-606.05,8.493e-05,2]
[420635016,1776387040847,-848.54,8.493e-05,2]
[420635017,1776387040856,-1345.07,8.493e-05,2]
[420635018,1776387040866,-500.0,8.493e-05,2]
[420635019,1776387040875,-319.46873874,8.493e-05,2]
[420635020,1776387040885,-661.78,8.493e-05,2]
[420635021,1776387040894,-500.0,8.493e-05,2]
[420635022,1776387040904,-685.72,8.493e-05,2]
[420635023,1776387040913,-500.0,8.493e-05,2]
[420635024,1776387040923,-500.0,8.493e-05,2]
[420635025,1776387040932,-500.0,8.493e-05,2]
[420635026,1776387040941,-1173.66,8.493e-05,2]
[420635027,1776387040951,-535.03,8.493e-05,2]
[420635028,1776387040960,-477.29270105,8.493e-05,2]
[420635029,1776387040969,-500.0,8.493e-05,2]
[420635030,1776387040978,-500.0,8.493e-05,2]
[420635031,1776387040988,-500.0,8.493e-05,2]
[420635032,1776387040997,-500.0,8.493e-05,2]
[420635033,1776387041007,-930.12,8.493e-05,2]
[420635034,1776387041016,-2369.81,8.493e-05,2]
[420635035,1776387041026,-500.0,8.493e-05,2]
[420635036,1776387041035,-236.80341356,8.493e-05,2]
[420635037,1776387041213,-530.36,8.493e-05,2]
[420635038,1776387041223,-500.0,8.493e-05,2]
[420635039,1776387041232,-500.0,8.493e-05,2]
[420635040,1776387041242,-886.48,8.493e-05,2]
[420635041,1776387041252,-527.33311185,8.493e-05,2]
[420635042,1776387041261,-500.0,8.493e-05,2]
[420635043,1776387041271,-500.0,8.493e-05,2]
[420635044,1776387041280,-2010.89,8.493e-05,2]
[420635045,1776387041289,-930.88,8.493e-05,2]
[420635046,1776387041298,-500.0,8.493e-05,2]
[420635047,1776387041307,-500.0,8.493e-05,2]
[420635048,1776387041316,-500.0,8.493e-05,2]
[420635049,1776387041325,-500.0,8.493e-05,2]
[420635050,1776387041334,-500.0,8.493e-05,2]
[420635051,1776387041343,-500.0,8.493e-05,2]
[420635052,1776387041352,-1869.5,8.493e-05,2]
[420635053,1776387041362,-500.0,8.493e-05,2]
[420635054,1776387041371,-500.0,8.493e-05,2]
[420635055,1776387041380,-1292.93,8.493e-05,2]
[420635056,1776387041389,-633.50310771,8.493e-05,2]
[420635057,1776387041399,-500.0,8.493e-05,2]
[420635058,1776387041409,-2722.35,8.493e-05,2]